[Event "Late-Titled-Tuesday-Blitz-January-23-2024"]
[Site "Chess.com"]
[Date "2024.01.23"]
[Round "3"]
[White "baag"]
[Black "Firouzja2003"]
[Result "0-1"]
[WhiteElo "2851"]
[BlackElo "3147"]
[TimeControl "180+1"]
[EndTime "14:29:09 PST"]
[Termination "Firouzja2003 won by resignation"]

1. d4 {[%clk 0:03:00.9]} 1... g6 {[%clk 0:02:57.6]} 2. c4 {[%clk 0:03:00.8]}
2... Bg7 {[%clk 0:02:58]} 3. Nf3 {[%clk 0:03:01.2]} 3... d6 {[%clk 0:02:58.4]}
4. g3 {[%clk 0:03:01]} 4... Nf6 {[%clk 0:02:57.6]} 5. Nc3 {[%clk 0:03:01.1]}
5... O-O {[%clk 0:02:55.6]} 6. Bg2 {[%clk 0:03:01.8]} 6... c6 {[%clk 0:02:54.2]}
7. O-O {[%clk 0:03:02.1]} 7... Bf5 {[%clk 0:02:54.6]} 8. Ne1 {[%clk 0:03:02.5]}
8... Be6 {[%clk 0:02:48.2]} 9. d5 {[%clk 0:03:03]} 9... cxd5 {[%clk 0:02:45.8]}
10. cxd5 {[%clk 0:03:03.9]} 10... Bf5 {[%clk 0:02:43.3]} 11. e4 {[%clk
0:03:03.4]} 11... Bd7 {[%clk 0:02:42.4]} 12. Nd3 {[%clk 0:03:03.3]} 12... Na6
{[%clk 0:02:41.8]} 13. h3 {[%clk 0:03:01]} 13... Rc8 {[%clk 0:02:33.4]} 14. Be3
{[%clk 0:03:00.4]} 14... b6 {[%clk 0:02:32.8]} 15. Rc1 {[%clk 0:02:41.7]} 15...
Nc5 {[%clk 0:02:32.4]} 16. Nb4 {[%clk 0:02:38.5]} 16... Qe8 {[%clk 0:01:55.6]}
17. Nc6 {[%clk 0:02:25.6]} 17... Bxc6 {[%clk 0:01:53.3]} 18. dxc6 {[%clk
0:02:26.5]} 18... Rxc6 {[%clk 0:01:53.8]} 19. e5 {[%clk 0:02:12.5]} 19... dxe5
{[%clk 0:01:54.7]} 20. Bxc6 {[%clk 0:01:55.7]} 20... Qxc6 {[%clk 0:01:55.6]} 21.
Bxc5 {[%clk 0:01:37.6]} 21... bxc5 {[%clk 0:01:41.2]} 22. Qe2 {[%clk 0:01:37.8]}
22... Qe6 {[%clk 0:01:41.3]} 23. Kh2 {[%clk 0:01:31.2]} 23... e4 {[%clk
0:01:19.7]} 24. Rce1 {[%clk 0:01:21.5]} 24... Rb8 {[%clk 0:01:13.6]} 25. Nxe4
{[%clk 0:01:14.1]} 25... Qxa2 {[%clk 0:01:11.2]} 26. Nc3 {[%clk 0:01:07.1]}
26... Qb3 {[%clk 0:00:32.1]} 27. Qxe7 {[%clk 0:01:06.1]} 27... h5 {[%clk
0:00:21.8]} 28. Qxc5 {[%clk 0:00:57.7]} 28... h4 {[%clk 0:00:22.1]} 29. g4
{[%clk 0:00:56.3]} 29... Nd7 {[%clk 0:00:20.8]} 30. Qd5 {[%clk 0:00:35.3]} 30...
Qxd5 {[%clk 0:00:15.1]} 31. Nxd5 {[%clk 0:00:36.2]} 31... Rxb2 {[%clk 0:00:14]}
32. Re7 {[%clk 0:00:31.9]} 32... Ne5 {[%clk 0:00:12.7]} 33. Rxa7 {[%clk
0:00:29.2]} 33... Nd3 {[%clk 0:00:13]} 34. Ra8+ {[%clk 0:00:19.5]} 34... Kh7
{[%clk 0:00:13.1]} 35. Kg2 {[%clk 0:00:14.6]} 35... Bd4 {[%clk 0:00:13.6]} 36.
Kf3 {[%clk 0:00:15.3]} 36... Nxf2 {[%clk 0:00:11.8]} 37. Ra4 {[%clk 0:00:13.3]}
37... Rb3+ {[%clk 0:00:09.8]} 38. Ke2 {[%clk 0:00:11.8]} 38... Bc5 {[%clk
0:00:08.8]} 39. Rf4 {[%clk 0:00:10.9]} 39... Rb2+ {[%clk 0:00:07.9]} 40. Kf3
{[%clk 0:00:10.8]} 40... Nxh3 {[%clk 0:00:04.1]} 41. Rxf7+ {[%clk 0:00:11.1]}
41... Kh6 {[%clk 0:00:04.9]} 42. Rc7 {[%clk 0:00:06.1]} 42... Ng5+ {[%clk
0:00:05.4]} 43. Kf4 {[%clk 0:00:06.1]} 43... Bd6+ {[%clk 0:00:06.1]} 44. Ke3
{[%clk 0:00:05.5]} 44... Rb3+ {[%clk 0:00:06.4]} 45. Rc3 {[%clk 0:00:05.1]}
45... Rb5 {[%clk 0:00:04.7]} 46. Nf6 {[%clk 0:00:03.3]} 46... Be5 {[%clk
0:00:04.7]} 47. Rc8 {[%clk 0:00:02.6]} 47... Rb3+ {[%clk 0:00:05.3]} 48. Ke2
{[%clk 0:00:02.4]} 48... Ne6 {[%clk 0:00:04.8]} 49. Ng8+ {[%clk 0:00:01.9]}
49... Kg5 {[%clk 0:00:05.5]} 50. Ne7 {[%clk 0:00:02.3]} 50... Nf4+ {[%clk
0:00:05.6]} 51. Kd2 {[%clk 0:00:02.4]} 51... Rd3+ {[%clk 0:00:05.4]} 52. Kc2
{[%clk 0:00:02.9]} 52... Rd7 {[%clk 0:00:05.7]} 53. Nc6 {[%clk 0:00:02.8]} 53...
Bf6 {[%clk 0:00:05.8]} 54. Rg8 {[%clk 0:00:02]} 54... Nd5 {[%clk 0:00:05.6]} 55.
Nb8 {[%clk 0:00:01.5]} 55... Rd6 {[%clk 0:00:05]} 56. Kd3 {[%clk 0:00:02.4]}
56... Ne7+ {[%clk 0:00:04.5]} 0-1

[Event "Late-Titled-Tuesday-Blitz-January-23-2024"]
[Site "Chess.com"]
[Date "2024.01.23"]
[Round "3"]
[White "sofaceindisguise"]
[Black "Msb2"]
[Result "0-1"]
[WhiteElo "2762"]
[BlackElo "3042"]
[TimeControl "180+1"]
[EndTime "14:29:12 PST"]
[Termination "Msb2 won by resignation"]

1. d4 {[%clk 0:02:51.8]} 1... d5 {[%clk 0:03:00.3]} 2. c4 {[%clk 0:02:52]} 2...
e6 {[%clk 0:03:01]} 3. Nc3 {[%clk 0:02:52.4]} 3... Bb4 {[%clk 0:03:01.4]} 4. Nf3
{[%clk 0:02:51.5]} 4... Nf6 {[%clk 0:03:01.8]} 5. Bf4 {[%clk 0:02:50.6]} 5...
dxc4 {[%clk 0:03:01.2]} 6. e3 {[%clk 0:02:51.1]} 6... b5 {[%clk 0:03:00.6]} 7.
Be2 {[%clk 0:02:49.9]} 7... Bb7 {[%clk 0:03:00.3]} 8. O-O {[%clk 0:02:50.5]}
8... c6 {[%clk 0:02:59.2]} 9. Qc2 {[%clk 0:02:47.8]} 9... O-O {[%clk 0:02:58.5]}
10. Rfc1 {[%clk 0:02:48.1]} 10... Nbd7 {[%clk 0:02:57.5]} 11. Bg3 {[%clk
0:02:48.1]} 11... a6 {[%clk 0:02:56.4]} 12. b3 {[%clk 0:02:47.8]} 12... cxb3
{[%clk 0:02:56.6]} 13. axb3 {[%clk 0:02:48.7]} 13... Be7 {[%clk 0:02:55.6]} 14.
Ne4 {[%clk 0:02:35]} 14... Nxe4 {[%clk 0:02:52.8]} 15. Qxe4 {[%clk 0:02:35.9]}
15... Qb6 {[%clk 0:02:51.5]} 16. Ne5 {[%clk 0:02:28.5]} 16... Nxe5 {[%clk
0:02:43.2]} 17. Bxe5 {[%clk 0:02:28.2]} 17... c5 {[%clk 0:02:33.7]} 18. dxc5
{[%clk 0:02:27]} 18... Bxc5 {[%clk 0:02:31.6]} 19. Qg4 {[%clk 0:02:19.4]} 19...
f6 {[%clk 0:02:31.1]} 20. Bc3 {[%clk 0:01:19.1]} 20... b4 {[%clk 0:02:24.2]} 21.
Bd4 {[%clk 0:01:05]} 21... Bxd4 {[%clk 0:02:22.7]} 22. exd4 {[%clk 0:01:05.4]}
22... Bd5 {[%clk 0:02:18]} 23. Bc4 {[%clk 0:01:03.3]} 23... Bxc4 {[%clk
0:02:16.7]} 24. Rxc4 {[%clk 0:01:02.5]} 24... a5 {[%clk 0:02:17.2]} 25. Rac1
{[%clk 0:01:02.5]} 25... f5 {[%clk 0:02:08.3]} 26. Qf4 {[%clk 0:00:58.2]} 26...
Rad8 {[%clk 0:02:05.1]} 27. h4 {[%clk 0:00:52.5]} 27... Qd6 {[%clk 0:02:04.8]}
28. Qe3 {[%clk 0:00:45.4]} 28... Qe7 {[%clk 0:02:01.1]} 29. h5 {[%clk
0:00:39.3]} 29... h6 {[%clk 0:02:00.9]} 30. Rc7 {[%clk 0:00:37.9]} 30... Rd7
{[%clk 0:02:01.2]} 31. Rxd7 {[%clk 0:00:37.3]} 31... Qxd7 {[%clk 0:02:02.1]} 32.
Rc5 {[%clk 0:00:36.9]} 32... Ra8 {[%clk 0:01:54.1]} 33. Qe5 {[%clk 0:00:34.7]}
33... Rc8 {[%clk 0:01:06.4]} 34. Rxc8+ {[%clk 0:00:05.1]} 34... Qxc8 {[%clk
0:01:07.3]} 35. d5 {[%clk 0:00:06]} 35... Kf7 {[%clk 0:00:43.1]} 36. dxe6+
{[%clk 0:00:04.7]} 36... Qxe6 {[%clk 0:00:44]} 37. Qxa5 {[%clk 0:00:05.2]} 37...
Qxb3 {[%clk 0:00:43.5]} 38. Qxf5+ {[%clk 0:00:04.2]} 38... Kg8 {[%clk
0:00:41.8]} 39. Qc8+ {[%clk 0:00:03.5]} 39... Kf7 {[%clk 0:00:37.8]} 40. Qd7+
{[%clk 0:00:03.9]} 40... Kf6 {[%clk 0:00:35.5]} 41. Qd6+ {[%clk 0:00:04.5]}
41... Kf5 {[%clk 0:00:33.4]} 42. Qd7+ {[%clk 0:00:03.4]} 42... Ke4 {[%clk
0:00:30.5]} 43. Qe7+ {[%clk 0:00:02.8]} 43... Kd3 {[%clk 0:00:28.9]} 44. Qxg7
{[%clk 0:00:03.3]} 44... Qd1+ {[%clk 0:00:28.7]} 45. Kh2 {[%clk 0:00:03.3]}
45... Qxh5+ {[%clk 0:00:29.6]} 46. Kg1 {[%clk 0:00:03.7]} 46... b3 {[%clk
0:00:26.2]} 47. Qd7+ {[%clk 0:00:04.2]} 47... Kc2 {[%clk 0:00:26.8]} 48. Qc6+
{[%clk 0:00:04.7]} 48... Kb2 {[%clk 0:00:25.8]} 49. f4 {[%clk 0:00:05.3]} 49...
Qd1+ {[%clk 0:00:24.9]} 50. Kh2 {[%clk 0:00:05.3]} 50... Qg4 {[%clk 0:00:20.8]}
51. Qf6+ {[%clk 0:00:04.8]} 51... Kb1 {[%clk 0:00:21.5]} 52. f5 {[%clk
0:00:04.6]} 52... b2 {[%clk 0:00:20.8]} 53. Qe5 {[%clk 0:00:05.2]} 53... Ka2
{[%clk 0:00:13.1]} 54. Qa5+ {[%clk 0:00:04.8]} 54... Kb3 {[%clk 0:00:13.8]} 55.
Qb5+ {[%clk 0:00:05.4]} 55... Qb4 {[%clk 0:00:14.5]} 56. Qd5+ {[%clk 0:00:05.9]}
56... Ka3 {[%clk 0:00:14.4]} 57. Qd3+ {[%clk 0:00:05.3]} 57... Ka2 {[%clk
0:00:15.1]} 58. Qd2 {[%clk 0:00:04.4]} 58... Qxd2 {[%clk 0:00:15.1]} 0-1

[Event "Late-Titled-Tuesday-Blitz-January-23-2024"]
[Site "Chess.com"]
[Date "2024.01.23"]
[Round "3"]
[White "Lady_Nika"]
[Black "Jenia84"]
[Result "0-1"]
[WhiteElo "2545"]
[BlackElo "2323"]
[TimeControl "180+1"]
[EndTime "14:29:13 PST"]
[Termination "Jenia84 won on time"]

1. e4 {[%clk 0:03:00.9]} 1... c5 {[%clk 0:02:58.5]} 2. Nc3 {[%clk 0:03:00.9]}
2... Nc6 {[%clk 0:02:48.7]} 3. g3 {[%clk 0:03:01.8]} 3... g6 {[%clk 0:02:48]} 4.
Bg2 {[%clk 0:03:02.3]} 4... Bg7 {[%clk 0:02:48.5]} 5. d3 {[%clk 0:03:00.3]} 5...
Nf6 {[%clk 0:02:48.4]} 6. f4 {[%clk 0:02:59.8]} 6... O-O {[%clk 0:02:42.7]} 7.
Nf3 {[%clk 0:02:59.3]} 7... a6 {[%clk 0:02:42.4]} 8. O-O {[%clk 0:02:58.9]} 8...
b5 {[%clk 0:02:42.4]} 9. Be3 {[%clk 0:02:56.5]} 9... d6 {[%clk 0:02:36.8]} 10.
Rb1 {[%clk 0:02:56]} 10... Bb7 {[%clk 0:02:36.1]} 11. Ne2 {[%clk 0:02:55.8]}
11... Nd7 {[%clk 0:02:32]} 12. h4 {[%clk 0:02:51.8]} 12... e5 {[%clk 0:02:22.6]}
13. f5 {[%clk 0:02:44.3]} 13... Nd4 {[%clk 0:02:16.1]} 14. Bg5 {[%clk
0:02:28.5]} 14... f6 {[%clk 0:02:13.2]} 15. Nfxd4 {[%clk 0:02:19.8]} 15... cxd4
{[%clk 0:02:05.6]} 16. Bd2 {[%clk 0:02:19.4]} 16... Nc5 {[%clk 0:01:49.2]} 17.
g4 {[%clk 0:02:16.1]} 17... d5 {[%clk 0:01:47.9]} 18. Bb4 {[%clk 0:02:05.7]}
18... Rc8 {[%clk 0:01:47]} 19. Ng3 {[%clk 0:01:56.5]} 19... Bh6 {[%clk
0:01:21.5]} 20. Bd2 {[%clk 0:01:42.4]} 20... Be3+ {[%clk 0:01:15.8]} 21. Kh2
{[%clk 0:01:36.4]} 21... Bxd2 {[%clk 0:01:05]} 22. Qxd2 {[%clk 0:01:35.4]} 22...
dxe4 {[%clk 0:01:05.1]} 23. dxe4 {[%clk 0:01:21.7]} 23... Qe7 {[%clk 0:01:03.9]}
24. Rf2 {[%clk 0:01:00.7]} 24... Qg7 {[%clk 0:01:02.8]} 25. g5 {[%clk
0:00:57.9]} 25... Rc7 {[%clk 0:00:36.3]} 26. Rbf1 {[%clk 0:00:56.6]} 26... Rcf7
{[%clk 0:00:30.6]} 27. Qb4 {[%clk 0:00:54]} 27... Nd7 {[%clk 0:00:26.9]} 28. Bh3
{[%clk 0:00:39.9]} 28... Bc8 {[%clk 0:00:21.6]} 29. fxg6 {[%clk 0:00:38.2]}
29... hxg6 {[%clk 0:00:18.1]} 30. Be6 {[%clk 0:00:37.1]} 30... Qh7 {[%clk
0:00:18.5]} 31. Bxf7+ {[%clk 0:00:36.5]} 31... Rxf7 {[%clk 0:00:17.6]} 32. Kg2
{[%clk 0:00:34.5]} 32... Qxh4 {[%clk 0:00:17]} 33. gxf6 {[%clk 0:00:33.9]} 33...
Bb7 {[%clk 0:00:15.5]} 34. Qe1 {[%clk 0:00:26.7]} 34... Rxf6 {[%clk 0:00:12.7]}
35. Rxf6 {[%clk 0:00:20.1]} 35... Nxf6 {[%clk 0:00:12.8]} 36. Rh1 {[%clk
0:00:16.5]} 36... Qg5 {[%clk 0:00:10.3]} 37. Kh2 {[%clk 0:00:02.8]} 37... Qh4+
{[%clk 0:00:09.1]} 38. Kg2 {[%clk 0:00:02.8]} 38... Qg5 {[%clk 0:00:09.7]} 39.
Kh2 {[%clk 0:00:03.4]} 39... Qf4 {[%clk 0:00:09.9]} 40. Rf1 {[%clk 0:00:02.2]}
40... Ng4+ {[%clk 0:00:07.9]} 41. Kh3 {[%clk 0:00:01.9]} 41... Qg5 {[%clk
0:00:07.7]} 42. Kg2 {[%clk 0:00:01.7]} 42... Ne3+ {[%clk 0:00:07.4]} 43. Kh3
{[%clk 0:00:02.1]} 43... Nxf1 {[%clk 0:00:07.5]} 44. Qxf1 {[%clk 0:00:03]} 44...
Bc8+ {[%clk 0:00:07.6]} 45. Kg2 {[%clk 0:00:03.9]} 45... Bg4 {[%clk 0:00:07.3]}
46. Qf2 {[%clk 0:00:04]} 46... Qf4 {[%clk 0:00:07.4]} 47. Qe1 {[%clk 0:00:03.4]}
47... Bf3+ {[%clk 0:00:06.7]} 48. Kh2 {[%clk 0:00:02.9]} 48... g5 {[%clk
0:00:07.2]} 49. Qb4 {[%clk 0:00:02.5]} 49... Qh4+ {[%clk 0:00:06.9]} 50. Kg1
{[%clk 0:00:02.7]} 50... Qxg3+ {[%clk 0:00:07.3]} 0-1

[Event "Late-Titled-Tuesday-Blitz-January-23-2024"]
[Site "Chess.com"]
[Date "2024.01.23"]
[Round "3"]
[White "Jumbo"]
[Black "BeanScreen"]
[Result "0-1"]
[WhiteElo "2947"]
[BlackElo "2739"]
[TimeControl "180+1"]
[EndTime "14:29:17 PST"]
[Termination "BeanScreen won by resignation"]

1. d4 {[%clk 0:02:58.9]} 1... d5 {[%clk 0:03:00]} 2. Nf3 {[%clk 0:02:59.4]} 2...
e6 {[%clk 0:03:00]} 3. c4 {[%clk 0:02:59.7]} 3... a6 {[%clk 0:02:59.7]} 4. Bg5
{[%clk 0:02:55.2]} 4... Be7 {[%clk 0:02:59.3]} 5. Bxe7 {[%clk 0:02:54.8]} 5...
Nxe7 {[%clk 0:03:00.2]} 6. Nbd2 {[%clk 0:02:49.8]} 6... O-O {[%clk 0:02:59.4]}
7. Rc1 {[%clk 0:02:49.3]} 7... b6 {[%clk 0:02:57.8]} 8. cxd5 {[%clk 0:02:43.6]}
8... exd5 {[%clk 0:02:57.2]} 9. g3 {[%clk 0:02:43.2]} 9... Bb7 {[%clk
0:02:54.9]} 10. Bg2 {[%clk 0:02:43.3]} 10... Nd7 {[%clk 0:02:55.2]} 11. O-O
{[%clk 0:02:43.2]} 11... c5 {[%clk 0:02:49.2]} 12. dxc5 {[%clk 0:02:40.3]} 12...
bxc5 {[%clk 0:02:49.3]} 13. Qc2 {[%clk 0:02:40.3]} 13... Re8 {[%clk 0:02:44.5]}
14. Ng5 {[%clk 0:02:21]} 14... Ng6 {[%clk 0:02:42.6]} 15. Ndf3 {[%clk
0:02:13.4]} 15... h6 {[%clk 0:02:30.4]} 16. Nh3 {[%clk 0:02:12.6]} 16... Qe7
{[%clk 0:02:18.6]} 17. Rfe1 {[%clk 0:02:00.4]} 17... Rac8 {[%clk 0:02:14.3]} 18.
Nd2 {[%clk 0:01:31.5]} 18... Nf6 {[%clk 0:02:07.9]} 19. Qf5 {[%clk 0:01:27.5]}
19... Qc7 {[%clk 0:00:50.6]} 20. Rc2 {[%clk 0:01:07.5]} 20... Re5 {[%clk
0:00:48.4]} 21. Qd3 {[%clk 0:01:06.5]} 21... Rce8 {[%clk 0:00:47.5]} 22. b3
{[%clk 0:00:52.3]} 22... Qb6 {[%clk 0:00:38]} 23. e3 {[%clk 0:00:40.6]} 23... a5
{[%clk 0:00:37]} 24. Rec1 {[%clk 0:00:40.6]} 24... Ba6 {[%clk 0:00:32.1]} 25.
Qc3 {[%clk 0:00:37.4]} 25... d4 {[%clk 0:00:27.1]} 26. Nc4 {[%clk 0:00:37.4]}
26... Bxc4 {[%clk 0:00:24.4]} 27. Qxc4 {[%clk 0:00:34.7]} 27... dxe3 {[%clk
0:00:25]} 28. fxe3 {[%clk 0:00:34.2]} 28... Rxe3 {[%clk 0:00:24.8]} 29. Qxc5
{[%clk 0:00:34.7]} 29... Re1+ {[%clk 0:00:19.4]} 30. Rxe1 {[%clk 0:00:30.8]}
30... Rxe1+ {[%clk 0:00:20.3]} 31. Kf2 {[%clk 0:00:29.2]} 31... Ne4+ {[%clk
0:00:08.3]} 32. Bxe4 {[%clk 0:00:27.8]} 32... Qxc5+ {[%clk 0:00:08.6]} 33. Rxc5
{[%clk 0:00:28]} 33... Rxe4 {[%clk 0:00:09.2]} 34. Rxa5 {[%clk 0:00:24.8]} 34...
Ne5 {[%clk 0:00:08.6]} 35. Nf4 {[%clk 0:00:21.4]} 35... f5 {[%clk 0:00:06]} 36.
h3 {[%clk 0:00:17.9]} 36... g5 {[%clk 0:00:05.3]} 37. Ng2 {[%clk 0:00:13.7]}
37... Kf7 {[%clk 0:00:04.5]} 38. Rd5 {[%clk 0:00:13.3]} 38... Ke6 {[%clk
0:00:04.6]} 39. Rd1 {[%clk 0:00:13.1]} 39... f4 {[%clk 0:00:04]} 40. gxf4 {[%clk
0:00:12.9]} 40... gxf4 {[%clk 0:00:04.9]} 41. Re1 {[%clk 0:00:13.3]} 41... Nd3+
{[%clk 0:00:05.1]} 42. Kf1 {[%clk 0:00:13.7]} 42... Nxe1 {[%clk 0:00:05.1]} 43.
Nxe1 {[%clk 0:00:14.6]} 43... Kf5 {[%clk 0:00:04.4]} 44. Kf2 {[%clk 0:00:14]}
44... Re3 {[%clk 0:00:04.8]} 45. Nf3 {[%clk 0:00:14]} 45... Ke4 {[%clk
0:00:04.9]} 46. Nd2+ {[%clk 0:00:13.8]} 46... Kd3 {[%clk 0:00:05.3]} 47. Nf3
{[%clk 0:00:14.4]} 47... Re2+ {[%clk 0:00:05.8]} 48. Kf1 {[%clk 0:00:14.5]}
48... Rxa2 {[%clk 0:00:06.7]} 49. Ne5+ {[%clk 0:00:15]} 49... Ke4 {[%clk
0:00:06.6]} 50. Ng4 {[%clk 0:00:14.7]} 50... h5 {[%clk 0:00:06]} 51. Nf6+ {[%clk
0:00:14.7]} 51... Ke3 {[%clk 0:00:06.6]} 52. Nxh5 {[%clk 0:00:14.1]} 52... f3
{[%clk 0:00:06.8]} 53. Kg1 {[%clk 0:00:14.7]} 53... Ra1+ {[%clk 0:00:07]} 54.
Kh2 {[%clk 0:00:15]} 54... f2 {[%clk 0:00:07.5]} 55. Ng3 {[%clk 0:00:15.7]}
55... f1=Q {[%clk 0:00:07.6]} 56. Nxf1+ {[%clk 0:00:16.1]} 56... Rxf1 {[%clk
0:00:08.1]} 57. Kg3 {[%clk 0:00:16.9]} 57... Rg1+ {[%clk 0:00:08.2]} 58. Kh4
{[%clk 0:00:17.5]} 58... Rb1 {[%clk 0:00:08.7]} 59. Kg5 {[%clk 0:00:17.1]} 59...
Rxb3 {[%clk 0:00:08.6]} 60. h4 {[%clk 0:00:17.7]} 60... Rb5+ {[%clk 0:00:08.9]}
61. Kg6 {[%clk 0:00:16.9]} 61... Kf4 {[%clk 0:00:09.3]} 62. h5 {[%clk
0:00:17.4]} 62... Rb6+ {[%clk 0:00:09.8]} 63. Kg7 {[%clk 0:00:16.6]} 63... Kg5
{[%clk 0:00:10.7]} 0-1

[Event "Late-Titled-Tuesday-Blitz-January-23-2024"]
[Site "Chess.com"]
[Date "2024.01.23"]
[Round "3"]
[White "Alex_Sahakyan2006"]
[Black "TigrVShlyape"]
[Result "1/2-1/2"]
[WhiteElo "2725"]
[BlackElo "2944"]
[TimeControl "180+1"]
[EndTime "14:29:20 PST"]
[Termination "Game drawn by repetition"]

1. d4 {[%clk 0:03:00.9]} 1... f5 {[%clk 0:02:54.7]} 2. e4 {[%clk 0:02:58.4]}
2... fxe4 {[%clk 0:02:53]} 3. Nc3 {[%clk 0:02:58.6]} 3... Nf6 {[%clk 0:02:52.7]}
4. Bg5 {[%clk 0:02:58.7]} 4... g6 {[%clk 0:02:50.6]} 5. Bxf6 {[%clk 0:02:56.9]}
5... exf6 {[%clk 0:02:50.2]} 6. Nxe4 {[%clk 0:02:52.6]} 6... d5 {[%clk
0:02:40.7]} 7. Nc3 {[%clk 0:02:49.1]} 7... Bb4 {[%clk 0:02:30]} 8. Bd3 {[%clk
0:02:37]} 8... Be6 {[%clk 0:01:59.8]} 9. h4 {[%clk 0:02:25.3]} 9... Qe7 {[%clk
0:01:50.9]} 10. Ne2 {[%clk 0:02:22.6]} 10... Nd7 {[%clk 0:01:47.1]} 11. Qd2
{[%clk 0:01:59.7]} 11... O-O-O {[%clk 0:01:46]} 12. O-O-O {[%clk 0:01:46.2]}
12... Nb6 {[%clk 0:01:43.8]} 13. a3 {[%clk 0:01:25.9]} 13... Bxc3 {[%clk
0:01:12.8]} 14. Qxc3 {[%clk 0:01:02.5]} 14... Qd6 {[%clk 0:01:02.6]} 15. Rhe1
{[%clk 0:00:55.9]} 15... Rhe8 {[%clk 0:01:00.5]} 16. Kb1 {[%clk 0:00:44.1]}
16... c6 {[%clk 0:00:54.8]} 17. Nc1 {[%clk 0:00:36.6]} 17... Bg4 {[%clk
0:00:47.3]} 18. f3 {[%clk 0:00:34.1]} 18... Bd7 {[%clk 0:00:45.8]} 19. Nb3
{[%clk 0:00:20.5]} 19... Rxe1 {[%clk 0:00:25.3]} 20. Rxe1 {[%clk 0:00:18.6]}
20... Re8 {[%clk 0:00:25.9]} 21. Rxe8+ {[%clk 0:00:16.9]} 21... Bxe8 {[%clk
0:00:26]} 22. Qe1 {[%clk 0:00:15.5]} 22... Bf7 {[%clk 0:00:24.3]} 23. Nc5 {[%clk
0:00:13.8]} 23... Nd7 {[%clk 0:00:23]} 24. Nxd7 {[%clk 0:00:13.1]} 24... Kxd7
{[%clk 0:00:21.6]} 25. h5 {[%clk 0:00:10.3]} 25... Qe7 {[%clk 0:00:20.4]} 26.
Qa5 {[%clk 0:00:06.1]} 26... a6 {[%clk 0:00:18.4]} 27. Qb6 {[%clk 0:00:05.6]}
27... Kc8 {[%clk 0:00:18.3]} 28. Qa7 {[%clk 0:00:05.5]} 28... Qc7 {[%clk
0:00:17.9]} 29. Qa8+ {[%clk 0:00:03.7]} 29... Qb8 {[%clk 0:00:17.5]} 30. Qxb8+
{[%clk 0:00:03.8]} 30... Kxb8 {[%clk 0:00:18.1]} 31. h6 {[%clk 0:00:04.2]} 31...
a5 {[%clk 0:00:16.8]} 32. f4 {[%clk 0:00:03.4]} 32... Kc7 {[%clk 0:00:16.9]} 33.
Kc1 {[%clk 0:00:04]} 33... Kd6 {[%clk 0:00:16.8]} 34. Kd2 {[%clk 0:00:04.5]}
34... b6 {[%clk 0:00:16.9]} 35. Ke3 {[%clk 0:00:04.9]} 35... Ke7 {[%clk
0:00:15.6]} 36. g4 {[%clk 0:00:04.5]} 36... Kd6 {[%clk 0:00:15.7]} 37. g5 {[%clk
0:00:05.1]} 37... f5 {[%clk 0:00:15.7]} 38. Kd2 {[%clk 0:00:03.9]} 38... b5
{[%clk 0:00:14.9]} 39. Kc3 {[%clk 0:00:03.2]} 39... Kc7 {[%clk 0:00:14.6]} 40.
b3 {[%clk 0:00:03.2]} 40... Kb6 {[%clk 0:00:14.7]} 41. Kb2 {[%clk 0:00:03.9]}
41... Kc7 {[%clk 0:00:11.7]} 42. c3 {[%clk 0:00:04.5]} 42... Kb6 {[%clk
0:00:11.8]} 43. Kc2 {[%clk 0:00:05.1]} 43... Kc7 {[%clk 0:00:12.1]} 44. Kd2
{[%clk 0:00:05.7]} 44... Kb6 {[%clk 0:00:12.3]} 45. Bc2 {[%clk 0:00:06.3]} 45...
Kc7 {[%clk 0:00:12.4]} 46. Bd1 {[%clk 0:00:06.1]} 46... Kb6 {[%clk 0:00:12.7]}
47. Be2 {[%clk 0:00:06.7]} 47... Kc7 {[%clk 0:00:11.1]} 48. c4 {[%clk 0:00:07]}
48... b4 {[%clk 0:00:08.7]} 49. axb4 {[%clk 0:00:05.6]} 49... axb4 {[%clk
0:00:09]} 50. c5 {[%clk 0:00:03.8]} 50... Kb7 {[%clk 0:00:08.9]} 51. Ke3 {[%clk
0:00:03.9]} 51... Ka7 {[%clk 0:00:09]} 52. Bd3 {[%clk 0:00:04.2]} 52... Kb7
{[%clk 0:00:08.9]} 53. Kd2 {[%clk 0:00:04.4]} 53... Kc7 {[%clk 0:00:09]} 54. Ba6
{[%clk 0:00:04.5]} 54... Be6 {[%clk 0:00:07.3]} 55. Ke3 {[%clk 0:00:04.4]} 55...
Bf7 {[%clk 0:00:06.9]} 56. Kf2 {[%clk 0:00:04.5]} 56... Be6 {[%clk 0:00:07.2]}
57. Bd3 {[%clk 0:00:04.4]} 57... Bf7 {[%clk 0:00:07.3]} 58. Ke3 {[%clk
0:00:04.9]} 58... Be6 {[%clk 0:00:07.7]} 59. Kd2 {[%clk 0:00:05.1]} 59... Bf7
{[%clk 0:00:08]} 60. Be2 {[%clk 0:00:06]} 60... Be6 {[%clk 0:00:08.4]} 61. Bd1
{[%clk 0:00:06.9]} 61... Bf7 {[%clk 0:00:08.7]} 62. Bc2 {[%clk 0:00:07.8]} 62...
Kd7 {[%clk 0:00:08.8]} 63. Bd3 {[%clk 0:00:08.7]} 63... Kc7 {[%clk 0:00:09.2]}
1/2-1/2